[Event "FIDE Women World Blitz 2021"]
[Site "Warsaw"]
[Date "2021.12.29"]
[Round "1.9"]
[White "Zawadzka, Jolanta"]
[Black "Paehtz, Elisabeth"]
[Result "1-0"]
[ECO "B51"]
[WhiteElo "2429"]
[BlackElo "2485"]
[Annotator "ChessBase"]
[PlyCount "105"]
[EventDate "2021.12.29"]
[EventType "swiss"]
[EventCountry "POL"]
[Tiebreak "Cut1 Buchholz"]
[SourceTitle "playchess.com"]
[Source "ChessBase"]
[SourceQuality "1"]
[TimeControl "180+2"]

1. e4 {[%emt 0:00:01]} c5 {[%emt 0:00:01]} 2. Nf3 {[%emt 0:00:01]} d6 {[%emt 0:
00:00]} 3. Bb5+ {[%emt 0:00:01]} Nc6 {[%emt 0:00:01]} 4. O-O {[%emt 0:00:04]}
Nf6 {[%emt 0:00:07]} 5. Re1 {[%emt 0:00:02]} e5 {[%emt 0:00:02]} 6. c3 {
[%emt 0:00:07]} Bg4 {[%emt 0:00:02]} 7. h3 {[%emt 0:00:02]} Bh5 {[%emt 0:00:01]
} 8. d3 {[%emt 0:00:18]} a6 {[%emt 0:00:07]} 9. Ba4 {[%emt 0:00:01]} Be7 {
[%emt 0:00:09]} 10. Nbd2 {[%emt 0:00:03]} O-O {[%emt 0:00:12]} 11. Nf1 {
[%emt 0:00:03]} Qc7 {[%emt 0:00:03]} 12. Ng3 {[%emt 0:00:02]} Bg6 {[%emt 0:00:
01]} 13. Nh4 {[%emt 0:00:10]} Nd7 {[%emt 0:00:09]} 14. Nxg6 {[%emt 0:00:18]}
hxg6 {[%emt 0:00:03]} 15. Nf1 {[%emt 0:00:15]} b5 {[%emt 0:00:21]} 16. Bc2 {
[%emt 0:00:04]} Nb6 {[%emt 0:00:05]} 17. Ne3 {[%emt 0:00:02]} Qd7 {[%emt 0:00:
08]} 18. Nd5 {[%emt 0:00:11]} Bd8 {[%emt 0:00:12]} 19. Qf3 {[%emt 0:00:06]}
Nxd5 {[%emt 0:00:09]} 20. exd5 {[%emt 0:00:02]} Ne7 {[%emt 0:00:01]} 21. Bd2 {
[%emt 0:00:18]} Rc8 {[%emt 0:00:25]} 22. a4 {[%emt 0:00:01]} b4 {[%emt 0:00:05]
} 23. Bb3 {[%emt 0:00:07]} a5 {[%emt 0:00:09]} 24. Bc4 {[%emt 0:00:02]} Qf5 {
[%emt 0:00:05]} 25. Qe2 {[%emt 0:00:08]} Bb6 {[%emt 0:00:17]} 26. f4 {[%emt 0:
00:15]} Bc7 {[%emt 0:00:20]} 27. fxe5 {[%emt 0:00:22]} dxe5 {[%emt 0:00:04]}
28. Rf1 {[%emt 0:00:23]} Qd7 {[%emt 0:00:02]} 29. d6 {[%emt 0:00:02]} Bxd6 {
[%emt 0:00:03]} 30. Qf3 {[%emt 0:00:05]} Nc6 {[%emt 0:00:19]} 31. Qe4 {[%emt 0:
00:08]} Kh7 {[%emt 0:00:12]} 32. Rf3 {[%emt 0:00:04]} Qe7 {[%emt 0:00:05]} 33.
Qe2 {[%emt 0:00:11]} f5 {[%emt 0:00:01]} 34. Raf1 {[%emt 0:00:03]} Nd8 {
[%emt 0:00:02]} 35. Be3 {[%emt 0:00:04]} Ne6 {[%emt 0:00:01]} 36. Qd2 {[%emt 0:
00:01]} Rcd8 {[%emt 0:00:01]} 37. Kh1 {[%emt 0:00:04]} Bc7 {[%emt 0:00:01]} 38.
g4 {[%emt 0:00:03]} e4 {[%emt 0:00:00]} 39. R3f2 {[%emt 0:00:02]} exd3 {
[%emt 0:00:02]} 40. gxf5 {[%emt 0:00:01]} gxf5 {[%emt 0:00:01]} 41. Rxf5 {
[%emt 0:00:02]} Qh4 {[%emt 0:00:02]} 42. Qg2 {[%emt 0:00:02]} Rxf5 {[%emt 0:00:
01]} 43. Rxf5 {[%emt 0:00:01]} Nf8 {[%emt 0:00:08]} 44. Qf3 {[%emt 0:00:01]}
Qe1+ {[%emt 0:00:04]} 45. Kg2 {[%emt 0:00:01]} Qe2+ {[%emt 0:00:02]} 46. Qxe2 {
[%emt 0:00:02]} dxe2 {[%emt 0:00:01]} 47. Bxe2 {[%emt 0:00:01]} Ng6 {[%emt 0:
00:01]} 48. Rxc5 {[%emt 0:00:02]} Bb6 {[%emt 0:00:03]} 49. Rh5+ {[%emt 0:00:01]
} Kg8 {[%emt 0:00:01]} 50. Bc4+ {[%emt 0:00:01]} Kf8 {[%emt 0:00:01]} 51. Bxb6
{[%emt 0:00:01]} Nf4+ {[%emt 0:00:00]} 52. Kf3 {[%emt 0:00:01]} Nxh5 {[%emt 0:
00:01]} 53. Bxd8 {[%emt 0:00:01]} 1-0

[Event "FIDE Women World Blitz 2021"]
[Site "Warsaw"]
[Date "2021.12.29"]
[Round "1.9"]
[White "Strutinskaia, Galina"]
[Black "Katkov, Michelle"]
[Result "0-1"]
[ECO "A46"]
[WhiteElo "2188"]
[BlackElo "1651"]
[Annotator "NA"]
[PlyCount "104"]
[EventDate "2021.12.29"]
[EventType "swiss"]
[EventCountry "POL"]
[Tiebreak "Cut1 Buchholz"]
[SourceTitle "playchess.com"]
[Source "ChessBase"]
[SourceQuality "1"]
[TimeControl "180+2"]

1. d4 {[%emt 0:00:01]} Nf6 {[%emt 0:00:01]} 2. Nf3 {[%emt 0:00:01]} e6 {
[%emt 0:00:02]} 3. g3 {[%emt 0:00:03]} b5 {[%emt 0:00:14]} 4. a4 {[%emt 0:00:
04]} bxa4 {[%emt 0:00:15]} 5. Bg2 {[%emt 0:00:03]} Bb7 {[%emt 0:00:03]} 6. O-O
{[%emt 0:00:02]} c5 {[%emt 0:00:10]} 7. c3 {[%emt 0:00:09]} Be7 {[%emt 0:00:27]
} 8. Rxa4 {[%emt 0:00:03]} cxd4 {[%emt 0:00:07]} 9. Qxd4 {[%emt 0:00:09]} Nc6 {
[%emt 0:00:05]} 10. Qf4 {[%emt 0:00:01]} O-O {[%emt 0:00:07]} 11. Rd1 {[%emt 0:
00:01]} d5 {[%emt 0:00:02]} 12. Nbd2 {[%emt 0:00:05]} Qb6 {[%emt 0:00:08]} 13.
Nf1 {[%emt 0:00:13]} Rfd8 {[%emt 0:00:29]} 14. h4 {[%emt 0:00:06]} Bd6 {
[%emt 0:00:09]} 15. Qd2 {[%emt 0:00:10]} Ne4 {[%emt 0:00:03]} 16. Qe1 {[%emt 0:
00:01]} Qb3 {[%emt 0:00:08]} 17. Ra1 {[%emt 0:00:09]} Bc5 {[%emt 0:00:12]} 18.
Nd4 {[%emt 0:00:10]} Nxd4 {[%emt 0:00:17]} 19. cxd4 {[%emt 0:00:03]} Bb4 {
[%emt 0:00:01]} 20. Nd2 {[%emt 0:00:14]} Qc2 {[%emt 0:00:02]} 21. f3 {[%emt 0:
00:21]} Nd6 {[%emt 0:00:03]} 22. Qf1 {[%emt 0:00:10]} Nf5 {[%emt 0:00:04]} 23.
Nb1 {[%emt 0:00:16]} Nxg3 {[%emt 0:00:04]} 24. Na3 {[%emt 0:00:17]} Bxa3 {
[%emt 0:00:02]} 25. Qe1 {[%emt 0:00:01]} Nxe2+ {[%emt 0:00:02]} 26. Kh2 {
[%emt 0:00:01]} Bd6+ {[%emt 0:00:04]} 27. Kh1 {[%emt 0:00:08]} Ng3+ {[%emt 0:
00:04]} 28. Kg1 {[%emt 0:00:01]} Nf5 {[%emt 0:00:09]} 29. h5 {[%emt 0:00:06]}
Bg3 {[%emt 0:00:01]} 30. Qf1 {[%emt 0:00:04]} Qc4 {[%emt 0:00:07]} 31. Rd3 {
[%emt 0:00:25]} Ba6 {[%emt 0:00:06]} 32. Raa3 {[%emt 0:00:02]} Qc6 {[%emt 0:00:
05]} 33. Rac3 {[%emt 0:00:02]} Bxd3 {[%emt 0:00:02]} 34. Qxd3 {[%emt 0:00:01]}
Qb6 {[%emt 0:00:02]} 35. f4 {[%emt 0:00:07]} Rac8 {[%emt 0:00:01]} 36. Be3 {
[%emt 0:00:06]} Rxc3 {[%emt 0:00:01]} 37. bxc3 {[%emt 0:00:01]} Rb8 {[%emt 0:
00:02]} 38. Bf1 {[%emt 0:00:06]} Qb1 {[%emt 0:00:01]} 39. Qd2 {[%emt 0:00:08]}
Qe4 {[%emt 0:00:02]} 40. Bf2 {[%emt 0:00:07]} Bxf2+ {[%emt 0:00:02]} 41. Kxf2 {
[%emt 0:00:02]} Nh4 {[%emt 0:00:02]} 42. Kg3 {[%emt 0:00:01]} Nf5+ {[%emt 0:00:
03]} 43. Kf2 {[%emt 0:00:00]} Qb1 {[%emt 0:00:03]} 44. Bd3 {[%emt 0:00:01]} Qb2
{[%emt 0:00:01]} 45. Ke2 {[%emt 0:00:02]} Ng3+ {[%emt 0:00:03]} 46. Ke3 {
[%emt 0:00:00]} Qxd2+ {[%emt 0:00:04]} 47. Kxd2 {[%emt 0:00:01]} a5 {[%emt 0:
00:01]} 48. h6 {[%emt 0:00:01]} gxh6 {[%emt 0:00:01]} 49. Kc2 {[%emt 0:00:01]}
Nh5 {[%emt 0:00:02]} 50. f5 {[%emt 0:00:01]} exf5 {[%emt 0:00:02]} 51. Bxf5 {
[%emt 0:00:01]} a4 {[%emt 0:00:01]} 52. Bd7 {[%emt 0:00:02]} a3 {[%emt 0:00:02]
} 0-1

[Event "FIDE Women World Blitz 2021"]
[Site "Warsaw"]
[Date "2021.12.29"]
[Round "1.10"]
[White "Bodnaruk, Anastasia"]
[Black "Doluhanova, Evgeniya"]
[Result "1-0"]
[ECO "B20"]
[WhiteElo "2396"]
[BlackElo "2237"]
[Annotator "NA"]
[PlyCount "79"]
[EventDate "2021.12.29"]
[EventType "swiss"]
[EventCountry "POL"]
[Tiebreak "Cut1 Buchholz"]
[SourceTitle "playchess.com"]
[Source "ChessBase"]
[SourceQuality "1"]
[TimeControl "180+2"]

1. e4 {[%emt 0:00:01]} c5 {[%emt 0:00:02]} 2. b3 {[%emt 0:00:04]} Nc6 {[%emt 0:
00:08]} 3. Bb2 {[%emt 0:00:01]} d6 {[%emt 0:00:11]} 4. Bb5 {[%emt 0:00:02]} Bd7
{[%emt 0:00:05]} 5. f4 {[%emt 0:00:08]} a6 {[%emt 0:00:06]} 6. Bxc6 {[%emt 0:
00:03]} Bxc6 {[%emt 0:00:01]} 7. Nc3 {[%emt 0:00:08]} Nf6 {[%emt 0:00:02]} 8.
Qe2 {[%emt 0:00:08]} b5 {[%emt 0:00:17]} 9. d3 {[%emt 0:00:14]} b4 {[%emt 0:00:
02]} 10. Nd1 {[%emt 0:00:07]} g6 {[%emt 0:00:28]} 11. Nf3 {[%emt 0:00:13]} Bg7
{[%emt 0:00:02]} 12. O-O {[%emt 0:00:05]} O-O {[%emt 0:00:02]} 13. Ne3 {
[%emt 0:00:01]} a5 {[%emt 0:00:10]} 14. a4 {[%emt 0:00:25]} bxa3 {[%emt 0:00:
14]} 15. Rxa3 {[%emt 0:00:01]} a4 {[%emt 0:00:03]} 16. bxa4 {[%emt 0:00:05]}
Rxa4 {[%emt 0:00:02]} 17. Rxa4 {[%emt 0:00:03]} Bxa4 {[%emt 0:00:02]} 18. e5 {
[%emt 0:00:19]} Nh5 {[%emt 0:00:19]} 19. g3 {[%emt 0:00:03]} Bc6 {[%emt 0:00:
05]} 20. Nc4 {[%emt 0:00:07]} d5 {[%emt 0:00:18]} 21. Ne3 {[%emt 0:00:03]} Qb6
{[%emt 0:00:05]} 22. Ba1 {[%emt 0:00:03]} Ra8 {[%emt 0:00:06]} 23. f5 {[%emt 0:
00:08]} d4 {[%emt 0:00:32]} 24. Nc4 {[%emt 0:00:01]} Qb7 {[%emt 0:00:02]} 25.
Ng5 {[%emt 0:00:08]} h6 {[%emt 0:00:17]} 26. fxg6 {[%emt 0:00:17]} fxg6 {
[%emt 0:00:02]} 27. Ne6 {[%emt 0:00:06]} Bd5 {[%emt 0:00:02]} 28. Nxc5 {
[%emt 0:00:18]} Qc7 {[%emt 0:00:04]} 29. Bxd4 {[%emt 0:00:03]} e6 {[%emt 0:00:
05]} 30. g4 {[%emt 0:00:05]} Rc8 {[%emt 0:00:03]} 31. gxh5 {[%emt 0:00:02]}
gxh5 {[%emt 0:00:02]} 32. Nd6 {[%emt 0:00:02]} Ra8 {[%emt 0:00:03]} 33. Qxh5 {
[%emt 0:00:02]} Kh8 {[%emt 0:00:02]} 34. Nf7+ {[%emt 0:00:01]} Kh7 {[%emt 0:00:
01]} 35. Ng5+ {[%emt 0:00:04]} Kh8 {[%emt 0:00:01]} 36. Ngxe6 {[%emt 0:00:04]}
Bxe6 {[%emt 0:00:02]} 37. Nxe6 {[%emt 0:00:01]} Qe7 {[%emt 0:00:02]} 38. Nxg7 {
[%emt 0:00:12]} Qxg7+ {[%emt 0:00:01]} 39. Kh1 {[%emt 0:00:00]} Rg8 {[%emt 0:
00:01]} 40. e6 {[%emt 0:00:09]} 1-0

[Event "FIDE Women World Blitz 2021"]
[Site "Warsaw"]
[Date "2021.12.29"]
[Round "1.10"]
[White "Brambilla, Renee Blandy T."]
[Black "Fernandez, Maria Florencia"]
[Result "0-1"]
[ECO "E99"]
[WhiteElo "1651"]
[BlackElo "2184"]
[Annotator "NA"]
[PlyCount "56"]
[EventDate "2021.12.29"]
[EventType "swiss"]
[EventCountry "POL"]
[Tiebreak "Cut1 Buchholz"]
[SourceTitle "playchess.com"]
[Source "ChessBase"]
[SourceQuality "1"]
[TimeControl "180+2"]

1. d4 {[%emt 0:00:01]} Nf6 {[%emt 0:00:03]} 2. c4 {[%emt 0:00:02]} g6 {[%emt 0:
00:02]} 3. Nc3 {[%emt 0:00:01]} Bg7 {[%emt 0:00:01]} 4. e4 {[%emt 0:00:05]} d6
{[%emt 0:00:02]} 5. Nf3 {[%emt 0:00:07]} O-O {[%emt 0:00:03]} 6. Be2 {[%emt 0:
00:05]} e5 {[%emt 0:00:04]} 7. O-O {[%emt 0:00:06]} Nc6 {[%emt 0:00:02]} 8. d5
{[%emt 0:00:01]} Ne7 {[%emt 0:00:01]} 9. Ne1 {[%emt 0:00:06]} Nd7 {[%emt 0:00:
08]} 10. Nd3 {[%emt 0:00:05]} f5 {[%emt 0:00:06]} 11. Bd2 {[%emt 0:00:06]} Nf6
{[%emt 0:00:03]} 12. f3 {[%emt 0:00:01]} f4 {[%emt 0:00:03]} 13. c5 {[%emt 0:
00:08]} g5 {[%emt 0:00:02]} 14. cxd6 {[%emt 0:00:06]} cxd6 {[%emt 0:00:03]} 15.
Rc1 {[%emt 0:00:03]} h5 {[%emt 0:00:06]} 16. Nb5 {[%emt 0:00:13]} Qb6+ {
[%emt 0:00:22]} 17. Nf2 {[%emt 0:00:02]} g4 {[%emt 0:00:02]} 18. Kh1 {[%emt 0:
00:29]} g3 {[%emt 0:00:12]} 19. hxg3 {[%emt 0:00:09]} fxg3 {[%emt 0:00:03]} 20.
Nh3 {[%emt 0:00:17]} Bxh3 {[%emt 0:00:08]} 21. gxh3 {[%emt 0:00:02]} Ng6 {
[%emt 0:00:06]} 22. Kg2 {[%emt 0:00:06]} h4 {[%emt 0:00:27]} 23. a4 {[%emt 0:
00:02]} Nh5 {[%emt 0:00:05]} 24. Nc7 {[%emt 0:00:19]} Ngf4+ {[%emt 0:00:04]}
25. Bxf4 {[%emt 0:00:26]} Nxf4+ {[%emt 0:00:02]} 26. Kh1 {[%emt 0:00:21]} g2+ {
[%emt 0:00:02]} 27. Kh2 {[%emt 0:00:10]} gxf1=Q {[%emt 0:00:16]} 28. Qxf1 {
[%emt 0:00:03]} Rac8 {[%emt 0:00:20]} 0-1

[Event "FIDE Women World Blitz 2021"]
[Site "Warsaw"]
[Date "2021.12.29"]
[Round "1.11"]
[White "Gaboyan, Susanna"]
[Black "Dzagnidze, Nana"]
[Result "1-0"]
[ECO "D00"]
[WhiteElo "2253"]
[BlackElo "2524"]
[Annotator "ChessBase"]
[PlyCount "113"]
[EventDate "2021.12.29"]
[EventType "swiss"]
[EventCountry "POL"]
[Tiebreak "Cut1 Buchholz"]
[SourceTitle "playchess.com"]
[Source "ChessBase"]
[SourceQuality "1"]
[TimeControl "180+2"]

1. d4 {[%emt 0:00:00]} Nf6 {[%emt 0:00:00]} 2. Nc3 {[%emt 0:00:00]} d5 {
[%emt 0:00:00]} 3. Bf4 {[%emt 0:00:00]} c6 {[%emt 0:00:00]} 4. Qd2 {[%emt 0:00:
00]} Bf5 {[%emt 0:00:00]} 5. f3 {[%emt 0:00:00]} e6 {[%emt 0:00:00]} 6. e3 {
[%emt 0:00:00]} Bd6 {[%emt 0:00:00]} 7. Nge2 {[%emt 0:00:00]} h6 {[%emt 0:00:
00]} 8. g4 {[%emt 0:00:00]} Bh7 {[%emt 0:00:00]} 9. h4 {[%emt 0:00:00]} Na6 {
[%emt 0:00:00]} 10. O-O-O {[%emt 0:00:00]} Be7 {[%emt 0:00:00]} 11. Ng3 {
[%emt 0:00:00]} Qa5 {[%emt 0:00:00]} 12. Kb1 {[%emt 0:00:00]} Nb4 {[%emt 0:00:
00]} 13. Bd3 {[%emt 0:00:00]} Nxd3 14. cxd3 {[%emt 0:00:00]} O-O-O {[%emt 0:00:
00]} 15. h5 {[%emt 0:00:00]} Nd7 {[%emt 0:00:00]} 16. Nge2 {[%emt 0:00:00]} f6
{[%emt 0:00:00]} 17. Nc1 {[%emt 0:00:00]} e5 {[%emt 0:00:00]} 18. Nb3 {[%emt 0:
00:00]} Qa6 {[%emt 0:00:00]} 19. Bg3 {[%emt 0:00:00]} Rhe8 {[%emt 0:00:00]} 20.
Ka1 {[%emt 0:00:00]} Bf8 {[%emt 0:01:07]} 21. f4 {[%emt 0:00:00]} exf4 {
[%emt 0:00:25]} 22. Bxf4 {[%emt 0:00:00]} Nb6 {[%emt 0:00:21]} 23. Ne2 {
[%emt 0:00:00]} Qa4 {[%emt 0:00:15]} 24. Rc1 {[%emt 0:00:00]} Bb4 {[%emt 0:00:
01]} 25. Nc3 {[%emt 0:00:00]} Qa6 {[%emt 0:00:11]} 26. Rhd1 {[%emt 0:00:00]}
Na4 {[%emt 0:00:03]} 27. Qc2 {[%emt 0:00:00]} Nxc3 {[%emt 0:00:32]} 28. bxc3 {
[%emt 0:00:00]} Bd6 {[%emt 0:00:05]} 29. Qh2 {[%emt 0:00:00]} Bxf4 {[%emt 0:00:
04]} 30. exf4 {[%emt 0:00:00]} Re3 {[%emt 0:00:00]} 31. Nc5 {[%emt 0:00:00]}
Qa5 {[%emt 0:00:00]} 32. f5 {[%emt 0:00:00]} Bg8 {[%emt 0:00:00]} 33. Qd2 {
[%emt 0:00:00]} Re7 {[%emt 0:00:05]} 34. Re1 {[%emt 0:00:00]} Rc7 {[%emt 0:00:
24]} 35. Qf4 {[%emt 0:00:43]} b6 {[%emt 0:00:00]} 36. Nb3 {[%emt 0:00:07]} Qa3
{[%emt 0:00:00]} 37. Rc2 {[%emt 0:00:18]} a5 {[%emt 0:00:00]} 38. Kb1 {[%emt 0:
00:35]} a4 {[%emt 0:00:01]} 39. Nc1 {[%emt 0:00:03]} b5 {[%emt 0:00:23]} 40.
Qd2 {[%emt 0:00:00]} Qd6 {[%emt 0:00:00]} 41. Qe3 {[%emt 0:00:13]} Bf7 {
[%emt 0:00:00]} 42. Qf2 {[%emt 0:00:03]} Rdd7 {[%emt 0:00:00]} 43. Rb2 {
[%emt 0:00:00]} Rb7 {[%emt 0:00:00]} 44. Ree2 {[%emt 0:00:14]} b4 {[%emt 0:00:
00]} 45. cxb4 {[%emt 0:00:00]} a3 {[%emt 0:00:00]} 46. Rb3 {[%emt 0:00:00]}
Rxb4 {[%emt 0:00:00]} 47. Rc2 {[%emt 0:00:23]} Rdb7 {[%emt 0:00:00]} 48. Rc5 {
[%emt 0:00:03]} Kb8 {[%emt 0:00:04]} 49. Rxb4 {[%emt 0:00:03]} Rxb4+ {[%emt 0:
00:00]} 50. Nb3 {[%emt 0:00:00]} Be8 {[%emt 0:00:02]} 51. Qe1 {[%emt 0:00:00]}
Rxb3+ {[%emt 0:00:05]} 52. axb3 {[%emt 0:00:00]} Bd7 {[%emt 0:00:00]} 53. Ka2 {
[%emt 0:00:00]} Qf4 {[%emt 0:00:00]} 54. Kxa3 {[%emt 0:00:00]} Qxg4 {[%emt 0:
00:09]} 55. Qb4+ {[%emt 0:00:15]} Kc7 {[%emt 0:00:00]} 56. Ra5 {[%emt 0:00:00]}
Bxf5 {[%emt 0:00:17]} 57. Ra7+ {[%emt 0:00:00]} 1-0

[Event "FIDE Women World Blitz 2021"]
[Site "Warsaw"]
[Date "2021.12.29"]
[Round "1.11"]
[White "Babiy, Olga"]
[Black "Budkiewicz, Magdalena"]
[Result "1-0"]
[ECO "B07"]
[WhiteElo "2179"]
[BlackElo "1624"]
[Annotator "NA"]
[PlyCount "75"]
[EventDate "2021.12.29"]
[EventType "swiss"]
[EventCountry "POL"]
[Tiebreak "Cut1 Buchholz"]
[SourceTitle "playchess.com"]
[Source "ChessBase"]
[SourceQuality "1"]
[TimeControl "180+2"]

1. d4 {[%emt 0:00:00]} Nf6 {[%emt 0:00:01]} 2. Nf3 {[%emt 0:00:01]} g6 {
[%emt 0:00:01]} 3. Nbd2 {[%emt 0:00:01]} Bg7 {[%emt 0:00:01]} 4. e4 {[%emt 0:
00:00]} d6 {[%emt 0:00:01]} 5. Bb5+ {[%emt 0:00:02]} Bd7 {[%emt 0:00:02]} 6. a4
{[%emt 0:00:08]} O-O {[%emt 0:00:05]} 7. O-O {[%emt 0:00:03]} a6 {[%emt 0:00:
06]} 8. Bd3 {[%emt 0:00:03]} Nc6 {[%emt 0:00:05]} 9. c3 {[%emt 0:00:02]} e5 {
[%emt 0:00:02]} 10. dxe5 {[%emt 0:00:07]} Nxe5 {[%emt 0:00:07]} 11. Nxe5 {
[%emt 0:00:08]} dxe5 {[%emt 0:00:01]} 12. Nc4 {[%emt 0:00:02]} Re8 {[%emt 0:00:
03]} 13. Qc2 {[%emt 0:00:10]} Qe7 {[%emt 0:00:16]} 14. h3 {[%emt 0:00:01]} Bc6
{[%emt 0:00:02]} 15. Be3 {[%emt 0:00:04]} Rad8 {[%emt 0:00:02]} 16. b4 {
[%emt 0:00:06]} Qd7 {[%emt 0:00:02]} 17. Rfd1 {[%emt 0:00:06]} Qe6 {[%emt 0:00:
15]} 18. Na5 {[%emt 0:00:04]} b6 {[%emt 0:00:20]} 19. Nxc6 {[%emt 0:00:24]}
Qxc6 {[%emt 0:00:01]} 20. Bxa6 {[%emt 0:00:05]} Qxe4 {[%emt 0:00:02]} 21. Bd3 {
[%emt 0:00:17]} Qb7 {[%emt 0:00:10]} 22. a5 {[%emt 0:00:06]} bxa5 {[%emt 0:00:
08]} 23. bxa5 {[%emt 0:00:01]} e4 {[%emt 0:00:08]} 24. Bc4 {[%emt 0:00:01]} Nd5
{[%emt 0:00:08]} 25. Bg5 {[%emt 0:00:19]} Rd6 {[%emt 0:00:04]} 26. Rab1 {
[%emt 0:00:20]} Qa8 {[%emt 0:00:04]} 27. Bxd5 {[%emt 0:00:26]} Rxd5 {[%emt 0:
00:02]} 28. Rxd5 {[%emt 0:00:08]} Qxd5 {[%emt 0:00:02]} 29. Qa4 {[%emt 0:00:01]
} Ra8 {[%emt 0:00:07]} 30. Bh4 {[%emt 0:00:19]} Bxc3 {[%emt 0:00:13]} 31. a6 {
[%emt 0:00:01]} Bd4 {[%emt 0:00:20]} 32. Rd1 {[%emt 0:00:12]} c5 {[%emt 0:00:
01]} 33. Bf6 {[%emt 0:00:11]} Qd6 {[%emt 0:00:03]} 34. Bxd4 {[%emt 0:00:04]}
cxd4 {[%emt 0:00:01]} 35. Rxd4 {[%emt 0:00:01]} Rxa6 {[%emt 0:00:17]} 36. Qe8+
{[%emt 0:00:02]} Kg7 {[%emt 0:00:02]} 37. Rxd6 {[%emt 0:00:00]} Rxd6 {[%emt 0:
00:01]} 38. Qe5+ {[%emt 0:00:01]} 1-0

[Event "FIDE Women World Blitz 2021"]
[Site "Warsaw"]
[Date "2021.12.29"]
[Round "1.12"]
[White "Abdumalik, Zhansaya"]
[Black "Balajayeva, Khanim"]
[Result "0-1"]
[ECO "C92"]
[WhiteElo "2507"]
[BlackElo "2369"]
[Annotator "ChessBase"]
[PlyCount "92"]
[EventDate "2021.12.29"]
[EventType "swiss"]
[EventCountry "POL"]
[Tiebreak "Cut1 Buchholz"]
[SourceTitle "playchess.com"]
[Source "ChessBase"]
[SourceQuality "1"]
[TimeControl "180+2"]

1. e4 {[%emt 0:00:01]} e5 {[%emt 0:00:00]} 2. Nf3 {[%emt 0:00:01]} Nc6 {
[%emt 0:00:02]} 3. Bb5 {[%emt 0:00:01]} a6 {[%emt 0:00:01]} 4. Ba4 {[%emt 0:00:
01]} Nf6 {[%emt 0:00:02]} 5. O-O {[%emt 0:00:02]} Be7 {[%emt 0:00:01]} 6. Re1 {
[%emt 0:00:02]} b5 {[%emt 0:00:06]} 7. Bb3 {[%emt 0:00:01]} d6 {[%emt 0:00:03]}
8. c3 {[%emt 0:00:01]} O-O {[%emt 0:00:01]} 9. h3 {[%emt 0:00:01]} Bb7 {
[%emt 0:00:04]} 10. d4 {[%emt 0:00:03]} Re8 {[%emt 0:00:05]} 11. Nbd2 {[%emt 0:
00:06]} Nd7 {[%emt 0:00:16]} 12. Nf1 {[%emt 0:00:13]} exd4 {[%emt 0:00:05]} 13.
cxd4 {[%emt 0:00:02]} Na5 {[%emt 0:00:01]} 14. Bc2 {[%emt 0:00:01]} Bf6 {
[%emt 0:00:03]} 15. Rb1 {[%emt 0:00:02]} c5 {[%emt 0:00:02]} 16. d5 {[%emt 0:
00:02]} Nc4 {[%emt 0:00:01]} 17. b3 {[%emt 0:00:02]} Nce5 {[%emt 0:00:01]} 18.
N3h2 {[%emt 0:00:01]} Nb6 {[%emt 0:00:06]} 19. Ng3 {[%emt 0:00:15]} g6 {
[%emt 0:00:04]} 20. f4 {[%emt 0:00:13]} Ned7 {[%emt 0:00:03]} 21. Ng4 {[%emt 0:
00:09]} Bg7 {[%emt 0:00:03]} 22. Bb2 {[%emt 0:00:06]} Bxb2 {[%emt 0:00:05]} 23.
Rxb2 {[%emt 0:00:01]} Qh4 {[%emt 0:00:02]} 24. Ne2 {[%emt 0:00:34]} h5 {
[%emt 0:00:28]} 25. Nh2 {[%emt 0:00:02]} a5 {[%emt 0:00:18]} 26. Nf3 {[%emt 0:
00:18]} Qf6 {[%emt 0:00:00]} 27. Rb1 {[%emt 0:00:05]} a4 {[%emt 0:00:10]} 28.
Rf1 {[%emt 0:00:39]} axb3 29. axb3 {[%emt 0:00:02]} Qg7 {[%emt 0:00:13]} 30.
Ng3 {[%emt 0:00:10]} Qh6 {[%emt 0:00:25]} 31. f5 {[%emt 0:00:04]} h4 {[%emt 0:
00:06]} 32. Nh1 {[%emt 0:00:16]} gxf5 {[%emt 0:00:02]} 33. Nf2 {[%emt 0:00:02]}
fxe4 {[%emt 0:00:04]} 34. Bxe4 {[%emt 0:00:01]} Ra2 {[%emt 0:00:14]} 35. Ng4 {
[%emt 0:00:12]} Qg7 {[%emt 0:00:01]} 36. Bc2 {[%emt 0:00:05]} Nxd5 {[%emt 0:00:
05]} 37. Bf5 {[%emt 0:00:10]} N7f6 {[%emt 0:00:06]} 38. Ra1 {[%emt 0:00:03]}
Rxg2+ {[%emt 0:00:14]} 39. Kxg2 {[%emt 0:00:04]} Ne3+ 40. Kh2 {[%emt 0:00:03]}
Nxd1 {[%emt 0:00:01]} 41. Nxf6+ {[%emt 0:00:02]} Qxf6 {[%emt 0:00:01]} 42. Rg1+
{[%emt 0:00:01]} Kf8 {[%emt 0:00:01]} 43. Bg4 {[%emt 0:00:01]} Qf4+ {[%emt 0:
00:03]} 44. Kg2 {[%emt 0:00:01]} Re2+ {[%emt 0:00:11]} 45. Kf1 {[%emt 0:00:01]}
Bxf3 {[%emt 0:00:04]} 46. Rxd1 {[%emt 0:00:03]} Bxg4# {[%emt 0:00:01]} 0-1

[Event "FIDE Women World Blitz 2021"]
[Site "Warsaw"]
[Date "2021.12.29"]
[Round "1.12"]
[White "Zabrzanska, Weronika"]
[Black "Pavlidou, Ekaterini"]
[Result "0-1"]
[ECO "B27"]
[WhiteElo "1596"]
[BlackElo "2177"]
[Annotator "NA"]
[PlyCount "50"]
[EventDate "2021.12.29"]
[EventType "swiss"]
[EventCountry "POL"]
[Tiebreak "Cut1 Buchholz"]
[SourceTitle "playchess.com"]
[Source "ChessBase"]
[SourceQuality "1"]
[TimeControl "180+2"]

1. e4 {[%emt 0:00:01]} c5 {[%emt 0:00:01]} 2. c3 {[%emt 0:00:01]} g6 {[%emt 0:
00:06]} 3. d4 {[%emt 0:00:02]} cxd4 {[%emt 0:00:02]} 4. cxd4 {[%emt 0:00:01]}
d5 {[%emt 0:00:02]} 5. e5 {[%emt 0:00:07]} Bg7 {[%emt 0:00:01]} 6. Nf3 {
[%emt 0:00:03]} Nc6 {[%emt 0:00:02]} 7. Be2 {[%emt 0:00:16]} f6 {[%emt 0:00:13]
} 8. Nc3 {[%emt 0:00:39]} Bg4 {[%emt 0:00:26]} 9. O-O {[%emt 0:00:18]} fxe5 {
[%emt 0:00:15]} 10. dxe5 {[%emt 0:00:22]} e6 {[%emt 0:00:10]} 11. Bg5 {[%emt 0:
00:38]} Nge7 {[%emt 0:00:01]} 12. Nd4 {[%emt 0:00:34]} Nxd4 {[%emt 0:00:32]}
13. Bxg4 {[%emt 0:00:17]} Ndf5 {[%emt 0:00:06]} 14. f4 {[%emt 0:00:05]} O-O {
[%emt 0:00:03]} 15. Qd3 {[%emt 0:00:03]} h6 {[%emt 0:00:09]} 16. Bxf5 {[%emt 0:
00:01]} Rxf5 {[%emt 0:00:30]} 17. Bh4 {[%emt 0:00:02]} Qb6+ {[%emt 0:00:24]}
18. Kh1 {[%emt 0:00:03]} Nc6 {[%emt 0:00:04]} 19. g4 {[%emt 0:00:01]} Nb4 {
[%emt 0:00:13]} 20. Qb1 {[%emt 0:00:03]} d4 {[%emt 0:00:10]} 21. gxf5 {[%emt 0:
00:03]} dxc3 {[%emt 0:00:02]} 22. bxc3 {[%emt 0:00:01]} Qc6+ {[%emt 0:00:04]}
23. Kg1 {[%emt 0:00:03]} Nd5 {[%emt 0:00:06]} 24. fxg6 {[%emt 0:00:03]} Ne3 {
[%emt 0:00:01]} 25. Re1 {[%emt 0:00:02]} Qg2# {[%emt 0:00:04]} 0-1